[Event "21st IPCA World Championship 2022"]
[Site "Ashdod"]
[Date "2022.05.14"]
[Round "7.7"]
[White "Cosic, Radoslav"]
[Black "Shapiro, Benny"]
[Result "0-1"]
[ECO "A03"]
[WhiteElo "2003"]
[BlackElo "1884"]
[Annotator "TA"]
[PlyCount "76"]
[EventDate "2022.05.09"]
[EventType "swiss"]
[EventCountry "ISR"]
[SourceTitle "playchess.com"]
[Source "ChessBase"]
[SourceQuality "1"]
[TimeControl "5400+30"]

{[%evp 10,76,1,-17,-24,-35,4,-32,-43,-37,31,7,40,-54,12,-112,-98,-136,-115,-113,-82,-193,-200,-318,-162,-275,-127,-146,-89,-148,-145,-146,-77,-134,-135,-137,-56,-175,-183,-563,-552,-553,-492,-853,-839,-1812,-1729,-29988,-940,-922,-908,-1527,-1524,-5396,-1942,-29986,-29987,-29990,-29986,-29990,-29991,-29993,-29994,-29994,-12841,-12840,-12840,-12839,-5791]} 1. Nf3 {[%emt 0:00:30]} e6 {[%emt 0:00:30]} 2. b3 {[%emt 0:00:30]} Nf6 {[%emt 0:00:30]} 3. Bb2 {[%emt 0:00:30]} d5 {[%emt 0:00:30]} 4. e3 {[%emt 0:00:30]} Be7 {[%emt 0:00:30]} 5. Ne5 {[%emt 0:00:30]} O-O {[%emt 0:00:30]} 6. f4 {[%emt 0:00:30]} c5 {[%emt 0:00:30] A03: Bird's Opening with 1...d5.} 7. Nc3 {[%emt 0:00:30] [#]} d4 $146 {[%emt 1:31:00]} ({Predecessor:} 7... Nbd7 8. Bd3 a6 9. Qf3 Qc7 10. Qh3 Rd8 11. Ne2 b5 12. Nxd7 Bxd7 13. Bxf6 Bxf6 14. Qxh7+ {0-1 (52) Krueger,D-Trippe,J GER email 2007}) 8. Ne2 {[%emt 0:00:30][%cal Re3d4]} dxe3 {[%emt 0:00:00] Black is slightly better.} 9. dxe3 {[%emt 0:00:00]} Ne4 {[%emt 0:00:00]} (9... Nbd7 $15) 10. Qd3 {[%emt 0:00:11]} Qa5+ {[%emt 0:00:00]} 11. c3 {[%emt 0:00:05]} ({Better is} 11. Nc3 $14 Nf6 12. Nc4) 11... f5 {[%emt 0:00:00]} (11... Nd6 $15) 12. Nc4 {[%emt 0:00:25]} (12. Ng3 $1 $11 Bh4 13. Qd1) 12... Qc7 $1 $17 {[%emt 0:00:00] Black is more active.} 13. a4 {[%emt 0:01:15]} b6 {[%emt 0:03:00]} 14. Qc2 {[%emt 1:31:34]} Bb7 {[%emt 0:00:00]} 15. Ne5 {[%emt 0:00:00]} (15. Ng3 $17) 15... Nd7 $19 {[%emt 0:00:00]} 16. Nf3 {[%emt 0:00:00]} (16. Nxd7 $142 Qxd7 17. Ng3) 16... e5 {[%emt 0:00:00]} (16... Ndf6 $142 $1 {[%cal Rf6g4] ...Ng4 is the strong threat.} 17. h3 Nd5) 17. c4 {[%emt 0:00:00]} (17. O-O-O $142) 17... exf4 {[%emt 0:00:00]} (17... Bf6 $1 $19 {has better winning chances.} 18. Rd1 Rad8) 18. Nxf4 $17 {[%emt 0:00:00]} Qc6 {[%emt 0:00:00] Prevents Ne6.} ({Black should try} 18... Ndf6 $1 {[%cal Rf6g4] Threatens to win with ...Ng4.} 19. Bd3 (19. Ne6 Qd6 $15) 19... Rfe8) 19. Nd5 {[%emt 0:00:00]} (19. Bd3 $142) 19... Rae8 {[%emt 0:00:00]} 20. Bd3 {[%emt 0:00:00] [#]} Bf6 {[%emt 0:00:00]} (20... Qh6 $142 $1 {aiming for ...Bxd5.} 21. O-O-O Bf6) 21. O-O {[%emt 0:00:00]} (21. Bxe4 $142 Rxe4 22. Bxf6 Nxf6 23. Qxe4 fxe4 24. Ne7+ Kh8 25. Nxc6 exf3 26. gxf3 Bxc6 27. Rf1) 21... Bxb2 {[%emt 0:00:00]} 22. Qxb2 {[%emt 0:00:00]} Ndf6 {[%emt 0:00:00]} (22... Qh6 $17 {White must now prevent ...Bxd5.} 23. Rae1 Nd6) 23. Ne5 {[%emt 0:00:00]} (23. Bxe4 $15 Nxe4 24. Rad1) 23... Qe6 $19 {[%emt 0:00:00]} 24. Nxf6+ {[%emt 0:00:00]} (24. Nf3 {was the crucial defense.} Nxd5 25. cxd5 Bxd5 26. Bb5) 24... Qxf6 {[%emt 0:00:00]} ({Worse is} 24... Rxf6 25. Nf3 $17) 25. a5 {[%emt 0:05:30]} Qxe5 {[%emt 0:00:00]} 26. Qc2 {[%emt 0:00:00]} (26. Qxe5 $142 Rxe5 27. axb6 axb6 28. Bxe4 Bxe4 29. Rfd1) 26... Rf6 {[%emt 0:00:00]} 27. axb6 {[%emt 0:00:00]} Rh6 {[%emt 0:00:00][%csl Gh6][%cal Re5h2]} 28. h3 {[%emt 0:00:00]} axb6 {[%emt 0:00:00]} (28... Ng5 $142 29. Rf2 Qxa1+ 30. Qb1 Qe5 31. Bxf5 axb6 32. Qc2 Qg3 33. e4 Bxe4 34. Qe2 Rxh3 35. Rf4 Qxf4 36. Bd7 {[#]} Ra8 $1 37. Be6+ Nxe6 38. Qf3 Ra1+ 39. Kf2 Rxf3+ 40. gxf3 Qxf3#) 29. Ra7 {[%emt 0:00:00]} Bc6 {[%emt 0:00:00] Hoping for ...Ng5.} 30. Rf4 {[%emt 0:00:00]} g5 {[%emt 0:08:30]} 31. Rf3 {[%emt 0:00:00]} g4 {[%emt 0:00:00]} 32. Rf4 {[%emt 0:00:00]} gxh3 {[%emt 0:00:00]} 33. gxh3 {[%emt 0:00:00]} Rxh3 {[%emt 0:00:00]} 34. Bf1 {[%emt 0:00:00]} Rxe3 {[%emt 0:00:00]} 35. Qh2 {[%emt 0:00:00]} Rg3+ {[%emt 0:00:00]} 36. Bg2 {[%emt 0:00:00]} Rg7 {[%emt 0:00:00]} (36... Qd4+ $142 37. Rf2 Qxf2+ 38. Kh1 Qe1+ 39. Qg1 Nf2+ 40. Kh2 Ng4+ 41. Kh1 Bxg2#) 37. Rxg7+ {[%emt 0:00:00]} Qxg7 {[%emt 0:00:00]} 38. Qh5 {[%emt 0:00:00]} Nf6 {[%emt 0:00:00] Weighted Error Value: White=1.48/Black=0.42} 0-1

[Event "21st IPCA World Championship 2022"]
[Site "Ashdod"]
[Date "2022.05.14"]
[Round "7.9"]
[White "Frumin, Rebeka"]
[Black "Aleksandrova, Aleksandra"]
[Result "0-1"]
[ECO "A00"]
[WhiteElo "1319"]
[BlackElo "1687"]
[Annotator "NA RC COMBH"]
[PlyCount "78"]
[EventDate "2022.05.09"]
[EventType "swiss"]
[EventCountry "ISR"]
[SourceTitle "playchess.com"]
[Source "ChessBase"]
[SourceQuality "1"]
[TimeControl "5400+30"]

1. e4 {[%emt 0:00:13]} d5 {[%emt 0:00:24]} 2. Nc3 {[%emt 0:01:27]} d4 {[%emt 0:00:20]} 3. Nce2 {[%emt 0:00:59]} e5 {[%emt 0:00:35]} 4. d3 {[%emt 0:02:30]} c5 {[%emt 0:01:47]} 5. c3 {[%emt 0:03:08]} Be6 {[%emt 0:01:36]} 6. Nf3 {[%emt 0:02:51]} f6 {[%emt 0:00:51]} 7. Ng3 {[%emt 0:02:55]} g6 {[%emt 0:01:46]} 8. Be2 {[%emt 0:03:38]} Nc6 {[%emt 0:01:06]} 9. a3 {[%emt 0:01:46]} a5 {[%emt 0:01:39]} 10. c4 {[%emt 0:02:10]} a4 {[%emt 0:01:18]} 11. O-O {[%emt 0:01:52]} Qd7 {[%emt 0:03:07]} 12. b3 {[%emt 1:13:01]} b5 {[%emt 0:08:46]} 13. cxb5 {[%emt 0:00:00]} Na5 {[%emt 0:00:29]} 14. bxa4 {[%emt 0:00:00]} Bb3 {[%emt 0:00:23]} 15. Qe1 {[%emt 0:00:00]} Bxa4 {[%emt 0:00:27]} 16. Bd2 {[%emt 0:00:00]} Nb3 {[%emt 0:11:29]} 17. Rb1 {[%emt 0:00:00]} Qxb5 {[%emt 0:02:28]} 18. Bc1 {[%emt 0:00:00]} Qa6 {[%emt 0:05:51]} 19. Nd2 {[%emt 0:00:00]} Na5 {[%emt 0:03:23]} 20. Nc4 {[%emt 0:00:00]} Nxc4 {[%emt 0:06:57]} 21. dxc4 {[%emt 0:00:00]} Bc2 {[%emt 0:00:37]} 22. Rb2 {[%emt 0:00:00]} d3 {[%emt 0:00:57]} 23. Bg4 {[%emt 0:00:00]} Qxc4 {[%emt 0:01:02]} 24. Rb7 {[%emt 0:00:00]} Qa6 {[%emt 0:03:56]} 25. Rb2 {[%emt 0:00:00]} h5 {[%emt 0:02:14]} 26. Bf3 {[%emt 0:00:00]} c4 {[%emt 0:02:11]} 27. Ra2 {[%emt 0:00:00]} Ne7 {[%emt 0:05:10]} 28. Bd1 {[%emt 0:00:00]} Bxd1 {[%emt 0:02:07]} 29. Qxd1 {[%emt 0:00:00]} Nc6 {[%emt 0:00:29]} 30. Bb2 {[%emt 0:00:00]} Qa4 {[%emt 0:05:17]} 31. Qd2 {[%emt 0:00:00]} Qb3 {[%emt 0:02:16]} 32. Raa1 {[%emt 0:00:00]} Bh6 {[%emt 0:02:10]} 33. Qe1 {[%emt 0:00:00]} Qxb2 {[%emt 0:00:33]} 34. Qd1 {[%emt 0:00:00]} O-O {[%emt 0:03:25]} 35. Nxh5 {[%emt 0:00:00]} gxh5 {[%emt 0:07:28]} 36. Qxh5 {[%emt 0:00:00]} Bg7 {[%emt 0:00:02]} 37. Rfb1 {[%emt 0:00:00]} Qd4 {[%emt 0:00:46]} 38. Qf5 {[%emt 0:00:00]} Nd8 {[%emt 0:00:57]} 39. Qg6 {[%emt 0:00:00]} d2 {[%emt 0:01:07]} 0-1